[Event "Cabo Verde Open 2022"]
[Site "Mindelo-S. Vicente"]
[Date "2022.04.22"]
[Round "1.1"]
[White "Strikovic, Aleksa"]
[Black "Fernandes, Luis De Pina"]
[Result "1-0"]
[ECO "A31"]
[WhiteElo "2489"]
[BlackElo "1639"]
[Annotator "TA"]
[PlyCount "55"]
[EventDate "2022.04.22"]
[EventType "swiss"]
[SourceTitle "playchess.com"]
[Source "ChessBase"]
[SourceQuality "1"]
[TimeControl "40/5400+30:1800+30"]

{[%evp 16,55,80,69,87,82,89,79,85,64,92,102,206,126,141,148,133,145,166,85,264,246,320,316,385,387,590,566,567,596,964,598,579,594,575,585,568,562,1990,1987,29987,29987]} 1. c4 {[%emt 0:00:26]} c5 {[%emt 0:00:10]} 2. Nf3 {[%emt 0:00:08]} Nc6 {[%emt 0:00:19]} 3. d4 {[%emt 0:00:10]} cxd4 {[%emt 0:01:04]} 4. Nxd4 {[%emt 0:00:08]} Nf6 {[%emt 0:01:07]} 5. Nc3 {[%emt 0:00:12]} e5 {[%emt 0:01:28]} 6. Nc2 {[%emt 0:01:28]} Be7 {[%emt 0:02:09]} 7. g3 {[%emt 0:00:21]} d6 {[%emt 0:02:29]} 8. Bg2 {[%emt 0:00:08]} O-O {[%emt 0:00:38]} 9. O-O {[%emt 0:00:08]} a6 {[%emt 0:05:36] A31: Symmetrical English: 2 Nf3 Nf6 3 d4.} 10. b3 {[%emt 0:02:12]} Rb8 {[%emt 0:00:29] [#]} 11. Ne3 $146 {[%emt 0:01:13]} ({Predecessor:} 11. Qd3 Be6 12. Nd5 Ne8 13. Ba3 f5 14. Rad1 Nf6 15. Nxe7+ Nxe7 16. Qxd6 Qxd6 17. Bxd6 Rbd8 18. Bxe7 Rxd1 19. Rxd1 Re8 20. Bxf6 {1-0 (20) Bolda,G (2198)-Dawkins,A (1604) ICCF email 2011}) 11... Nd4 {[%emt 0:02:45] White is better.} 12. Ned5 {[%emt 0:04:00]} Nxd5 {[%emt 0:07:38]} 13. Nxd5 {[%emt 0:00:13]} Bg5 {[%emt 0:01:03]} (13... Be6 $16) 14. e3 {[%emt 0:03:34]} Ne6 {[%emt 0:00:22]} 15. Ba3 {[%emt 0:00:54][%cal Oa3d6] [#] Bxd6! is the strong threat. &Bianco is more active.} Nc5 {[%emt 0:06:04]} 16. b4 $36 {[%emt 0:00:52][%mdl 2048] White is on the roll.} Ne6 {[%emt 0:00:15]} 17. Rc1 {[%emt 0:04:12]} (17. f4 $18 Be7 18. Bb2) 17... b5 $2 {[%emt 0:00:43] Black cannot hold the game after this.} (17... Nc7 $16 {was called for.}) 18. c5 $18 {[%emt 0:05:26]} dxc5 {[%emt 0:03:11]} 19. bxc5 {[%emt 0:01:21]} Nc7 {[%emt 0:02:59]} 20. c6 {[%emt 0:01:22] [#] Hoping for Nxc7.} Re8 {[%emt 0:01:02]} (20... b4 $142) 21. Nxc7 {[%emt 0:01:53]} Qxc7 {[%emt 0:01:48]} 22. Bd6 {[%emt 0:00:08]} Qb6 {[%emt 0:00:24]} 23. Bxb8 {[%emt 0:01:58]} Qxb8 {[%emt 0:00:03]} 24. c7 {[%emt 0:00:23]} Qb6 {[%emt 0:00:33]} 25. Bc6 {[%emt 0:00:31]} Rf8 {[%emt 0:01:36]} 26. Bd7 {[%emt 0:00:15]} Bxd7 {[%emt 0:03:22]} 27. Qxd7 {[%emt 0:00:59]} Bxe3 {[%emt 0:00:33]} 28. c8=Q {[%emt 0:01:34] Weighted Error Value: White=0.30/Black=0.94} 1-0

[Event "Cabo Verde Open 2022"]
[Site "Mindelo-S. Vicente"]
[Date "2022.04.22"]
[Round "1.2"]
[White "Barros Gutierrez, Angel Luis"]
[Black "Ortega Amarelle, Mariano"]
[Result "0-1"]
[ECO "B33"]
[WhiteElo "2040"]
[BlackElo "2476"]
[Annotator "TA"]
[PlyCount "48"]
[EventDate "2022.04.22"]
[EventType "swiss"]
[SourceTitle "playchess.com"]
[Source "ChessBase"]
[SourceQuality "1"]
[TimeControl "40/5400+30:1800+30"]

{[%evp 16,48,-57,-116,-110,-120,-110,-186,-177,-186,-196,-287,-279,-595,-601,-607,-608,-824,-816,-1047,-1044,-1045,-1008,-1569,-1517,-29990,-29991,-29991,-29992,-29994,-29992,-29992,-29992,-29992,-29992]} 1. e4 {[%emt 0:00:19]} c5 {[%emt 0:00:06]} 2. Nf3 {[%emt 0:01:16]} Nc6 {[%emt 0:00:08]} 3. d4 {[%emt 0:01:11]} cxd4 {[%emt 0:00:08]} 4. Nxd4 {[%emt 0:00:14]} Nf6 {[%emt 0:00:19]} 5. Nc3 {[%emt 0:01:21]} e5 {[%emt 0:00:11]} 6. Nf3 {[%emt 0:01:37]} Bb4 {[%emt 0:00:09]} 7. Bd2 {[%emt 0:00:48]} Bxc3 {[%emt 0:02:05]} 8. Bxc3 {[%emt 0:00:33]} Nxe4 {[%emt 0:00:10]} 9. Qd3 {[%emt 0:06:38]} (9. Nxe5 $15 Nxc3 10. Nxc6) 9... Nxc3 $17 {[%emt 0:03:39] B33: Sicilian: Pelikan and Sveshnikov Variations.} 10. Qxc3 {[%emt 0:06:10]} O-O {[%emt 0:00:11]} 11. Bc4 {[%emt 0:03:07]} (11. Bb5 $17 {is a better defense.}) 11... d5 $19 {[%emt 0:00:22][%cal Bd7d5,Bd5d4,Bd4e3,Be3e2][%mdl 32] Black is clearly better.} 12. Bb3 {[%emt 0:01:04] [#]} d4 $146 {[%emt 0:00:27]} ({Predecessor:} 12... e4 13. Nd4 Nxd4 14. Qxd4 Qg5 15. g3 Re8 16. f4 exf3+ 17. Kf2 Re4 18. Qxd5 Qe3+ 19. Kf1 Qe2+ 20. Kg1 {½-½ (20) Le Luong Phuong,T-Nguyen T Ngoc,H Hue 2004}) 13. Qd2 {[%emt 0:01:17]} (13. Qc5 $142) 13... e4 {[%emt 0:01:02]} 14. Ng5 {[%emt 0:00:39]} (14. Ng1 {was the crucial defense.}) 14... e3 {[%emt 0:00:16]} 15. fxe3 {[%emt 0:04:22]} Qxg5 {[%emt 0:00:13]} 16. O-O-O {[%emt 0:02:58]} dxe3 {[%emt 0:00:49]} 17. Qc3 {[%emt 0:01:19]} e2+ {[%emt 0:03:34]} 18. Rd2 {[%emt 0:00:27]} Rd8 {[%emt 0:02:57] [#] Threatens to win with ...Bg4.} 19. Re1 {[%emt 0:06:58]} Bg4 {[%emt 0:01:06] ( -> ...Rxd2)} 20. h3 {[%emt 0:00:18]} Rxd2 {[%emt 0:00:56][%csl Ge2,Gg4][%cal Rd2d1] Black mates.} 21. Bxf7+ {[%emt 0:08:02]} Kxf7 {[%emt 0:01:29][%csl Ge2,Gg4][%cal Rd2d1]} 22. Qb3+ {[%emt 0:03:38]} Rd5+ {[%emt 0:00:15]} 23. Kb1 {[%emt 0:00:44] [#]} Qd2 $1 {[%emt 0:00:14][%cal Rd2e1]} 24. Qxb7+ {[%emt 0:00:38]} Ne7 {[%emt 0:00:11] White did not feel at home in the position after the opening.  Weighted Error Value: White=1.27/Black=0.01 (flawless)} 0-1

[Event "Cabo Verde Open 2022"]
[Site "Mindelo-S. Vicente"]
[Date "2022.04.23"]
[Round "1.3"]
[White "Galego, Luis"]
[Black "Neves, Diogo Alexandre"]
[Result "1-0"]
[ECO "B12"]
[WhiteElo "2474"]
[BlackElo "1555"]
[Annotator "TA"]
[PlyCount "77"]
[EventDate "2022.04.22"]
[EventType "swiss"]
[SourceTitle "playchess.com"]
[Source "ChessBase"]
[SourceQuality "1"]
[TimeControl "40/5400+30:1800+30"]

{[%evp 10,76,11,18,16,12,9,10,18,-13,12,6,49,45,55,44,70,21,100,77,110,101,102,109,102,104,100,95,101,95,98,108,102,107,127,111,106,91,98,98,98,105,542,552,541,543,647,602,849,804,868,845,859,837,821,789,858,849,1708,1080,1280,1285,1207,1191,1308,1312,1469,1417,29999]} 1. e4 {[%emt 0:05:21][%cal Be2e4,Be4e5][%mdl 32]} c6 {[%emt 0:00:19]} 2. d4 {[%emt 0:00:10]} d5 {[%emt 0:00:12]} 3. e5 {[%emt 0:00:13]} Bf5 {[%emt 0:00:41]} 4. h4 {[%emt 0:01:19]} h6 {[%emt 0:05:44]} 5. g4 {[%emt 0:05:27]} Be4 {[%emt 0:10:08]} 6. f3 {[%emt 0:05:56]} Bh7 {[%emt 0:00:43] B12: Caro-Kann: Advance Variation.} 7. Bd3 {[%emt 0:01:03]} (7. e6 {seems wilder.} Nf6 8. Bd3 Qd6 9. exf7+ Kxf7 10. Bxh7 Rxh7 11. Qe2) 7... Bxd3 {[%emt 0:00:12]} 8. Qxd3 {[%emt 0:00:02][%cal Oe5e6] Threatening e6!} e6 {[%emt 0:02:05] The position is equal.} 9. Be3 {[%emt 0:02:59]} Qb6 {[%emt 0:04:11]} 10. Nc3 {[%emt 0:02:38] Active counter play!} Bb4 {[%emt 0:06:02]} 11. Nge2 {[%emt 0:03:17][%cal Bg1e2,Be2f4,Bf4h5,Bh5f6][%mdl 32] [#]} Ne7 $146 {[%emt 0:02:33]} ({Predecessor:} 11... Qa6 12. Qd1 Nd7 13. a3 Bf8 14. f4 O-O-O 15. f5 c5 16. fxe6 fxe6 17. Nf4 cxd4 18. Bxd4 {1-0 (57) Sarantungalag,S (1986)-Lkhamsuren,U (2155) Ulaanbaatar 2015}) 12. O-O-O $36 {[%emt 0:01:53][%mdl 2048] White has some pressure.} Bxc3 {[%emt 0:06:17]} 13. Qxc3 {[%emt 0:02:38]} (13. Nxc3 $14 Nd7 14. h5) 13... Na6 {[%emt 0:00:20]} (13... Qa6 $11 14. Kd2 Nd7) 14. Nf4 {[%emt 0:01:02]} O-O-O {[%emt 0:01:13]} 15. Kb1 {[%emt 0:02:49]} Qb4 {[%emt 0:03:27]} 16. Qxb4 {[%emt 0:01:41]} Nxb4 {[%emt 0:00:17]} 17. Nh5 {[%emt 0:01:07]} Rdg8 {[%emt 0:03:49]} 18. f4 {[%emt 0:00:57]} Na6 {[%emt 0:01:42]} 19. Rdf1 {[%emt 0:00:21][%cal Bd1f1,Bf1f2,Bf2h2,Bh2h4,Bh4h1][%mdl 32]} g6 {[%emt 0:10:53]} 20. Nf6 {[%emt 0:00:12]} Rf8 {[%emt 0:00:07] [#]} 21. h5 $1 {[%emt 0:00:10]} Nc7 {[%emt 0:02:55]} 22. Rf2 {[%emt 0:03:25]} Ng8 {[%emt 0:09:50]} 23. hxg6 {[%emt 0:00:55]} fxg6 {[%emt 0:01:39] [#]} 24. Nxg8 {[%emt 0:00:06]} Rfxg8 {[%emt 0:01:36]} 25. Rfh2 {[%emt 0:00:09]} g5 $2 {[%emt 0:01:00][%mdl 8192] This move loses the game for Black.} (25... h5 $16 {is tougher.}) 26. fxg5 $18 {[%emt 0:00:24]} Rg6 {[%emt 0:10:02]} 27. Rh4 {[%emt 0:01:51]} Kd7 {[%emt 0:01:15]} 28. gxh6 {[%emt 0:00:07]} Rh7 {[%emt 0:00:17]} 29. Rf1 {[%emt 0:00:11]} Ke7 {[%emt 0:01:31]} 30. g5 {[%emt 0:01:20]} Ne8 {[%emt 0:00:40]} 31. Rhh1 {[%emt 0:01:04]} a6 {[%emt 0:04:04]} 32. Kc1 {[%emt 0:00:19]} b5 {[%emt 0:00:16]} 33. Kd2 {[%emt 0:00:21]} Ng7 {[%emt 0:00:29]} 34. hxg7 {[%emt 0:00:15]} Rxh1 {[%emt 0:00:32]} 35. Rxh1 {[%emt 0:00:07]} Rxg7 {[%emt 0:00:10]} 36. Ke2 {[%emt 0:00:12]} Kf7 {[%emt 0:01:37]} 37. Kf3 {[%emt 0:00:14]} Kg6 {[%emt 0:00:23]} 38. Rh6+ {[%emt 0:00:08]} Kf5 {[%emt 0:00:45]} 39. Rf6# {[%emt 0:57:37] Weighted Error Value: White=0.08 (flawless) /Black=0.54} 1-0

[Event "Cabo Verde Open 2022"]
[Site "Mindelo-S. Vicente"]
[Date "2022.04.22"]
[Round "1.4"]
[White "Fortes, Aires"]
[Black "Del Rio De Angelis, Salvador G."]
[Result "0-1"]
[ECO "A41"]
[WhiteElo "1540"]
[BlackElo "2452"]
[Annotator "TA"]
[PlyCount "36"]
[EventDate "2022.04.22"]
[EventType "swiss"]
[SourceTitle "playchess.com"]
[Source "ChessBase"]
[SourceQuality "1"]
[TimeControl "40/5400+30:1800+30"]

{[%evp 9,36,48,50,42,39,37,50,-10,0,-261,-256,-259,-260,-256,-253,-262,-266,-264,-264,-303,-309,-310,-342,-400,-395,-550,-550,-531,-503]} 1. e4 {[%emt 0:00:13]} c6 {[%emt 0:06:19]} 2. d4 {[%emt 0:01:55]} d6 {[%emt 0:00:10]} 3. Bd3 {[%emt 0:01:02]} Nf6 {[%emt 0:00:30]} 4. Nf3 {[%emt 0:01:24]} Bg4 {[%emt 0:01:15]} 5. h3 {[%emt 0:00:23]} Bh5 {[%emt 0:00:08]} 6. Bf4 {[%emt 0:01:44] A41: 1 d4 d6: Tartakower System and Modern Defence.} e6 {[%emt 0:00:56]} 7. Nbd2 {[%emt 0:01:05]} Be7 {[%emt 0:00:26] [#]} 8. Nf1 $146 {[%emt 0:01:22]} (8. O-O $14) ({Predecessor:} 8. c3 e5 9. Bh2 exd4 10. cxd4 O-O 11. Qc2 Bg6 12. O-O Nbd7 13. Rfe1 Rc8 14. Nh4 {1-0 (32) Bicek,R (2104)-Zboril,J (1953) Czech Republic 2017}) 8... Qb6 {[%emt 0:00:57]} 9. Bxd6 $2 {[%emt 0:06:41][%mdl 8192]} Bxf3 $19 {[%emt 0:01:03]} ({Don't blunder} 9... Bxd6 $2 10. e5 Bxf3 11. gxf3 $19) (9... Qxb2 10. Rb1 $1 (10. Bxe7 Qc3+ 11. N1d2 Bxf3 $15) 10... Bxf3 11. Rxb2 $11) 10. gxf3 {[%emt 0:01:47]} Bxd6 {[%emt 0:00:18]} 11. e5 {[%emt 0:00:20]} Bb4+ {[%emt 0:01:46]} ({And not} 11... Qxd4 12. exd6 Nbd7 13. Ne3 $17) 12. c3 {[%emt 0:00:19]} Nd5 {[%emt 0:00:09]} 13. cxb4 {[%emt 0:00:52]} Qxb4+ {[%emt 0:00:10]} 14. Nd2 {[%emt 0:03:57]} Qxd4 {[%emt 0:01:15]} ({Worse is} 14... Qxb2 15. Nb3 $17) 15. Nc4 {[%emt 0:00:50]} b5 {[%emt 0:01:00]} 16. Nd6+ {[%emt 0:01:25]} Ke7 {[%emt 0:00:07]} 17. Nxf7 {[%emt 0:04:33]} Qb4+ {[%emt 0:00:12]} (17... Kxf7 $2 {[#]} 18. Bg6+ $1 {[%mdl 512]} hxg6 19. Qxd4 $18) 18. Qd2 {[%emt 0:00:10]} Kxf7 {[%emt 0:00:21] White did not feel at home in the position after the opening.  Weighted Error Value: White=0.72/Black=0.02 (flawless)} 0-1

[Event "Cabo Verde Open 2022"]
[Site "Mindelo-S. Vicente"]
[Date "2022.04.23"]
[Round "1.5"]
[White "Fernandes, Antonio"]
[Black "Vera-Cruz, Rui Manuel Nobre de "]
[Result "1-0"]
[ECO "D10"]
[WhiteElo "2313"]
[BlackElo "1526"]
[Annotator "TA"]
[PlyCount "81"]
[EventDate "2022.04.22"]
[EventType "swiss"]
[SourceTitle "playchess.com"]
[Source "ChessBase"]
[SourceQuality "1"]
[TimeControl "40/5400+30:1800+30"]

{[%evp 9,81,24,54,48,39,23,19,42,28,-10,0,-63,58,61,64,43,68,33,41,27,46,28,34,28,40,13,29,0,9,16,10,8,16,4,24,0,0,0,37,40,39,32,25,0,17,16,22,23,31,28,75,75,81,77,130,130,138,136,168,142,208,187,311,231,220,219,548,496,509,269,237,202,863,858]} 1. d4 {[%emt 0:20:30]} d5 {[%emt 0:00:32]} 2. Bg5 {[%emt 0:00:25]} Nd7 {[%emt 0:00:48]} 3. c4 {[%emt 0:00:19]} c6 {[%emt 0:01:10]} 4. Nc3 {[%emt 0:18:44]} Ngf6 {[%emt 0:00:27]} 5. e3 {[%emt 0:00:19][%cal Be2e3,Be3e4][%mdl 32]} g6 {[%emt 0:01:09]} 6. cxd5 {[%emt 0:03:02] D10: Slav Defence: 3 cxd5 (without early Nf3) and 3 Nc3.} Nxd5 {[%emt 0:01:22]} 7. e4 {[%emt 0:19:26]} Nxc3 {[%emt 0:04:02]} 8. bxc3 {[%emt 0:00:03] The position is equal.} Qa5 {[%emt 0:00:25] [#]} 9. Qd2 $146 {[%emt 0:00:14]} ({Predecessor:} 9. Bd2 Bg7 10. Nf3 O-O 11. Bd3 Qc7 12. O-O e5 13. Qb3 exd4 14. cxd4 Qb6 15. Qc4 {1-0 (63) Smaraki,M (1762)-Shah,R (1663) Bengaluru 2015}) 9... Bg7 {[%emt 0:00:33][%cal Od7c5]} 10. Bc4 {[%emt 0:19:56] [#]} (10. Bd3 $11) 10... Bf6 {[%emt 0:01:46]} (10... Nc5 $1 $15 11. f3 {[#]} (11. dxc5 $2 Bxc3 12. Nf3 Bxd2+ $19) 11... b5 $1) 11. Bh6 {[%emt 0:01:23] aiming for e5.} e5 {[%emt 0:02:52]} 12. Ne2 {[%emt 0:00:30] &Bianco is more active.} (12. Nf3 $5 {[%cal Re1g1]}) 12... exd4 {[%emt 0:04:14]} 13. cxd4 {[%emt 0:00:04]} (13. Nxd4 $5 {[%cal Re1g1]} Nb6 14. Bb3 $11) 13... Qxd2+ {[%emt 0:01:17]} 14. Kxd2 {[%emt 0:00:04]} b5 {[%emt 0:01:10]} 15. Bd3 {[%emt 0:05:03]} Nb6 {[%emt 0:01:50]} 16. Rac1 {[%emt 0:00:12]} Bd7 {[%emt 0:02:58]} 17. Rc2 {[%emt 0:00:11]} Rc8 {[%emt 0:01:01]} 18. Rhc1 {[%emt 0:00:11][%cal Od4d5]} a6 {[%emt 0:03:28]} 19. Be3 {[%emt 0:08:05][%cal Od4d5] Black should prevent d5!} Na4 {[%emt 0:07:55]} 20. d5 {[%emt 0:01:16][%cal Rd5c6]} Bb2 $1 {[%emt 0:03:06]} 21. Rb1 {[%emt 0:00:01]} Bf6 {[%emt 0:01:10]} 22. Rbc1 {[%emt 0:00:50][%cal Rd5c6]} Bb2 $1 {[%emt 0:00:09]} 23. Rb1 {[%emt 0:00:04]} Bf6 {[%emt 0:00:27]} 24. dxc6 {[%emt 0:00:14]} Rxc6 {[%emt 0:02:27]} 25. Rxc6 {[%emt 0:01:00]} Bxc6 {[%emt 0:00:07]} 26. Bc2 {[%emt 0:00:53]} O-O {[%emt 0:02:03]} 27. Bxa4 {[%emt 0:00:06] Hoping for Bc2.} bxa4 {[%emt 0:00:28]} 28. Rb6 {[%emt 0:00:27][%csl LRa6,LRc6]} Rc8 {[%emt 0:01:13]} 29. f3 {[%emt 0:00:51]} Kg7 {[%emt 0:05:00]} (29... Be5 $11 {feels stronger.}) 30. Bd4 $16 {[%emt 0:00:11]} Bxd4 {[%emt 0:05:22]} 31. Nxd4 {[%emt 0:00:01][%mdl 4096] Endgame KRB-KRN} Bd7 {[%emt 0:05:25]} ({Black should try} 31... Be8) 32. Rxa6 {[%emt 0:00:13]} Rb8 {[%emt 0:00:46]} 33. Ra7 {[%emt 0:00:12]} Rd8 {[%emt 0:02:08]} 34. Ke3 {[%emt 0:01:08]} h6 {[%emt 0:38:40]} (34... Kf8 $16 35. Rb7 Ke8) 35. h4 {[%emt 0:01:11]} g5 {[%emt 0:00:00]} (35... h5 $142 36. f4 Kh8) 36. hxg5 {[%emt 0:00:09]} hxg5 {[%emt 0:00:00]} 37. Ra5 {[%emt 0:00:11]} Kg6 $2 {[%emt 0:00:00]} (37... Kf6 {is a better chance.} 38. Ra7 Be8) 38. Rd5 $18 {[%emt 0:00:08]} Kf6 {[%emt 0:00:00]} 39. a3 {[%emt 0:00:22] Black must now prevent Nf5.} Ke7 {[%emt 0:00:00]} 40. Re5+ {[%emt 0:00:00]} Be6 $2 {[%emt 0:00:00]} (40... Kf6 41. Rd5 Ke7 42. Rxg5 Rc8) 41. Nc6+ {[%emt 0:01:02] Weighted Error Value: White=0.21 (precise) /Black=0.30} 1-0

[Event "Cabo Verde Open 2022"]
[Site "Mindelo-S. Vicente"]
[Date "2022.04.23"]
[Round "1.6"]
[White "Soares, Carlos Manuel Santos"]
[Black "L`Ami, Alina"]
[Result "0-1"]
[ECO "B92"]
[WhiteElo "1489"]
[BlackElo "2287"]
[Annotator "TA"]
[PlyCount "96"]
[EventDate "2022.04.22"]
[EventType "swiss"]
[SourceTitle "playchess.com"]
[Source "ChessBase"]
[SourceQuality "1"]
[TimeControl "40/5400+30:1800+30"]

{[%evp 19,96,-27,-18,-18,-14,-11,0,-14,-16,-31,-24,-50,-52,-49,-43,-37,-18,-58,0,-8,0,-2,0,0,0,-63,-61,-84,-41,-72,-39,-35,-43,-39,-39,-38,-37,-37,-37,-35,-35,-43,-43,-289,-289,-292,-289,-277,-290,-282,-285,-333,-303,-309,-287,-339,-339,-328,-297,-391,-391,-458,-464,-461,-445,-460,-460,-440,-429,-439,-408,-655,-648,-649,-648,-739,-727,-772,-762]} 1. e4 {[%emt 0:00:09]} c5 {[%emt 0:00:04]} 2. Nf3 {[%emt 0:00:20]} d6 {[%emt 0:00:05]} 3. d4 {[%emt 0:00:34]} cxd4 {[%emt 0:00:06]} 4. Nxd4 {[%emt 0:00:14]} Nf6 {[%emt 0:00:05]} 5. Nc3 {[%emt 0:00:16]} a6 {[%emt 0:00:04]} 6. Be2 {[%emt 0:03:00]} e5 {[%emt 0:00:08]} 7. Nf3 {[%emt 0:02:29]} Be7 {[%emt 0:00:26]} 8. O-O {[%emt 0:00:22]} O-O {[%emt 0:00:15]} 9. Bg5 {[%emt 0:02:00]} Nbd7 {[%emt 0:02:44]} 10. h3 {[%emt 0:06:21]} b5 {[%emt 0:18:32]} 11. a3 {[%emt 0:01:44] B92: Sicilian Najdorf: 6 Be2.} Bb7 {[%emt 0:00:49] [#]} 12. Nd2 $146 {[%emt 0:07:23]} ({Predecessor:} 12. Bd3 h6 13. Be3 Rc8 14. Nd2 Qc7 15. f4 exf4 16. Rxf4 Ne5 17. Qe2 Nfd7 18. Rf5 Bf6 {½-½ (37) Strugar,J (2199)-Kuzmanovic,A (2021) Belgrade 2017}) 12... Re8 {[%emt 0:15:46]} 13. Re1 $1 {[%emt 0:07:58] The position is equal.} Rc8 {[%emt 0:04:37]} 14. Bf1 {[%emt 0:04:26]} Qc7 {[%emt 0:05:03]} 15. Nf3 {[%emt 0:02:38]} h6 {[%emt 0:01:31]} 16. Bh4 {[%emt 0:03:19]} Nb6 {[%emt 0:05:43]} 17. Qd2 {[%emt 0:06:52]} Red8 {[%emt 0:04:12]} 18. Rad1 {[%emt 0:01:04]} Nc4 {[%emt 0:04:47]} (18... d5 $15 19. exd5 Nfxd5 20. Bxe7 Nxe7) 19. Bxc4 $11 {[%emt 0:01:29]} Qxc4 {[%emt 0:00:33]} 20. Qe3 {[%emt 0:02:44]} b4 {[%emt 0:03:05]} 21. Nd2 {[%emt 0:07:03]} Qc5 {[%emt 0:04:27]} 22. Qxc5 {[%emt 0:02:00]} (22. axb4 $11 Qxb4 23. Nb3) 22... dxc5 $15 {[%emt 0:00:02]} 23. Na4 {[%emt 0:07:36]} bxa3 {[%emt 0:01:22] Hoping for ...Rd4.} 24. bxa3 {[%emt 0:00:38]} Rd4 {[%emt 0:04:28]} (24... g5 $5 {[%cal Rg5h4]} 25. Bg3 {[#]} Nxe4 $1 26. Nxe4 Rxd1 27. Nf6+ Bxf6 28. Rxd1 Kg7 $17) 25. Nb6 {[%emt 0:01:08]} Rcd8 {[%emt 0:00:15]} 26. Nbc4 {[%emt 0:00:53]} g5 {[%emt 0:04:10]} ({But not} 26... Bxe4 27. c3 Rd3 28. Bxf6 Bxf6 29. Rxe4 $16) 27. Bg3 {[%emt 0:00:24]} Nxe4 {[%emt 0:00:42]} 28. Bxe5 {[%emt 0:01:57]} R4d7 {[%emt 0:01:15][%cal Re4d2]} 29. Re2 {[%emt 0:02:44]} f6 $36 {[%emt 0:04:11][%mdl 2048] Black is pushing.} 30. Bb2 {[%emt 0:01:23]} Kf7 {[%emt 0:02:06]} 31. Rde1 $2 {[%emt 0:09:02] This costs White the game.} Rxd2 $19 {[%emt 0:02:45] Active counter play!} 32. Nxd2 {[%emt 0:00:40]} Rxd2 {[%emt 0:00:05]} 33. Rxd2 {[%emt 0:02:33]} Nxd2 {[%emt 0:00:02]} 34. Bc1 {[%emt 0:03:27]} Nc4 {[%emt 0:01:07]} 35. Rd1 {[%emt 0:00:41]} Bc6 {[%emt 0:01:18]} 36. Rd3 {[%emt 0:00:36]} Bb5 {[%emt 0:07:02]} 37. Rd1 {[%emt 0:03:46]} Ba4 {[%emt 0:00:29]} 38. Rd3 {[%emt 0:02:13]} Ne5 {[%emt 0:01:54]} ({Worse is} 38... Bxc2 39. Rc3 $11) 39. Rc3 {[%emt 0:01:04]} c4 {[%emt 0:01:11]} 40. Kf1 {[%emt 0:00:00]} Bd8 {[%emt 0:00:00]} 41. f4 {[%emt 0:09:47] [#]} Ba5 $1 {[%emt 0:03:02]} 42. Rg3 {[%emt 0:00:34]} Ng6 {[%emt 0:05:41]} 43. fxg5 {[%emt 0:02:32]} hxg5 {[%emt 0:00:05]} 44. c3 {[%emt 0:00:57]} Bc2 {[%emt 0:02:24] Threatens to win with ...Bd3+.} 45. Rf3 {[%emt 0:01:49]} (45. Kf2 $142) 45... Ne5 {[%emt 0:00:44] Black is clearly winning.} 46. Rf2 {[%emt 0:01:15]} Bd3+ {[%emt 0:00:17]} 47. Ke1 {[%emt 0:01:48]} Bxc3+ {[%emt 0:00:30]} 48. Bd2 {[%emt 0:00:43]} Bd4 {[%emt 0:00:15] Weighted Error Value: White=0.34/Black=0.09 (flawless)} 0-1

[Event "Cabo Verde Open 2022"]
[Site "Mindelo-S. Vicente"]
[Date "2022.04.22"]
[Round "1.7"]
[White "Maisuradze, Nino"]
[Black "Miranda, Iura"]
[Result "1-0"]
[ECO "D06"]
[WhiteElo "2202"]
[BlackElo "1470"]
[Annotator "TA"]
[PlyCount "41"]
[EventDate "2022.04.22"]
[EventType "swiss"]
[SourceTitle "playchess.com"]
[Source "ChessBase"]
[SourceQuality "1"]
[TimeControl "40/5400+30:1800+30"]

{[%evp 9,41,64,147,107,150,140,195,175,189,199,262,167,205,173,191,193,389,283,331,294,290,258,436,433,416,427,605,597,930,845,1439,1342,1403,1193]} 1. d4 {[%emt 0:00:07]} d5 {[%emt 0:00:21]} 2. c4 {[%emt 0:00:16]} Nf6 {[%emt 0:00:30]} 3. cxd5 {[%emt 0:00:05]} e6 {[%emt 0:01:01]} 4. dxe6 {[%emt 0:00:07]} Bxe6 {[%emt 0:00:13]} 5. Nc3 {[%emt 0:00:23]} Be7 {[%emt 0:01:44]} (5... c5 $1 $14) 6. Nf3 {[%emt 0:00:12] D06: Queen's Gambit: Symmetrical and Baltic Defences.} O-O {[%emt 0:00:50]} 7. e4 {[%emt 0:00:37]} c6 {[%emt 0:00:52]} (7... Bb4 $16 {was called for.}) 8. Bd3 {[%emt 0:00:38] [#] White is clearly better.} Nbd7 $146 {[%emt 0:01:09]} ({Predecessor:} 8... h6 9. O-O Bg4 10. Be3 Nbd7 11. h3 Bh5 12. e5 Nd5 13. Nxd5 cxd5 14. g4 Bg6 15. Bxg6 fxg6 {½-½ (38) Reeh,A (1694)-Ludwig,S (1536) Radebeul 2019}) 9. Qc2 {[%emt 0:01:19]} h5 {[%emt 0:02:01]} (9... g6 $142 10. h3 Re8) 10. Ng5 {[%emt 0:00:28] aiming for e5.} Ng4 {[%emt 0:01:22]} 11. h4 {[%emt 0:01:29] f3 is the strong threat.} Nb6 {[%emt 0:01:09]} 12. f3 {[%emt 0:03:00]} Qc7 $2 {[%emt 0:02:52]} (12... Qxd4 {is a better defense.} 13. fxg4 Rad8) 13. e5 {[%emt 0:04:11]} Nxe5 {[%emt 0:03:33]} 14. dxe5 {[%emt 0:01:22]} Qxe5+ {[%emt 0:00:12]} 15. Qe2 {[%emt 0:05:12]} Qg3+ {[%emt 0:01:57]} (15... Qxe2+ 16. Kxe2 Bc4 17. Bxc4 Nxc4) 16. Kf1 $18 {[%emt 0:01:58]} Bxg5 {[%emt 0:08:32]} 17. hxg5 {[%emt 0:00:26] Strongly threatening Qe4.} ({Don't take} 17. Bxg5 Qd6 18. Rd1 Rae8 $18) 17... Nd5 {[%emt 0:03:55]} (17... Rad8 $142 18. b3 (18. Rxh5 Rxd3 19. Qe4 g6 $18) 18... Qd6) 18. Rxh5 {[%emt 0:16:01]} Nxc3 {[%emt 0:00:46]} 19. bxc3 {[%emt 0:00:59]} Bg4 {[%emt 0:00:09] [#]} 20. Qe4 $1 {[%emt 0:03:53][%csl Gd3,Gh5][%cal Re4h7][%mdl 512]} g6 {[%emt 0:05:02] [#]} (20... Qe1+ 21. Qxe1) 21. Bf4 $1 {[%emt 0:01:12][%mdl 512] Black got outplayed after the opening.  Weighted Error Value: White=0.33/Black=0.80} 1-0